[Event "SixDays Budapest GM-A January 2024"]
[Site "Budapest"]
[Date "2024.01.28"]
[Round "2.3"]
[White "Sedlak, Nikola"]
[Black "Karamsetty, Jeevan"]
[Result "1/2-1/2"]
[ECO "A04"]
[WhiteElo "2463"]
[BlackElo "2211"]
[Annotator "TA"]
[PlyCount "53"]
[EventDate "2024.01.26"]
[EventType "tourn"]
[EventCountry "HUN"]
[SourceTitle "playchess.com"]
[Source "ChessBase"]
[SourceQuality "1"]
[TimeControl "5400+30"]

{[%evp 9,53,15,28,16,21,19,22,8,25,21,39,26,39,32,41,24,18,18,6,7,46,35,37,11,39,5,10,3,43,39,41,32,41,23,23,37,124,123,120,122,113,0,0,-45,-38,-47]} 1. Nf3 {[%emt 0:07:40]} g6 {[%emt 0:00:33]} 2. d4 {[%emt 0:00:39]} d6 {[%emt 0:00:35]} 3. e4 {[%emt 0:00:20]} Nf6 {[%emt 0:00:38]} 4. Nbd2 {[%emt 0:00:30]} Bg7 {[%emt 0:00:50]} 5. Bb5+ {[%emt 0:00:24]} c6 {[%emt 0:02:48]} 6. Bc4 {[%emt 0:00:50]} d5 {[%emt 0:05:18]} 7. exd5 {[%emt 0:00:10]} cxd5 {[%emt 0:00:23]} 8. Bb3 {[%emt 0:00:05] The position is equal.} O-O {[%emt 0:00:56]} 9. O-O {[%emt 0:00:08]} Nc6 {[%emt 0:03:13]} 10. c3 {[%emt 0:00:07]} Bf5 {[%emt 0:05:27]} 11. Re1 {[%emt 0:00:25]} Rc8 {[%emt 0:05:51]} 12. Nf1 {[%emt 0:09:51]} Bg4 {[%emt 0:11:30]} 13. h3 {[%emt 0:03:12]} Bxf3 {[%emt 0:00:15]} 14. Qxf3 {[%emt 0:00:08]} Qa5 {[%emt 0:06:02]} 15. Bf4 {[%emt 0:02:07]} e6 {[%emt 0:02:21]} 16. Ng3 {[%emt 0:00:44]} Rfe8 {[%emt 0:03:43]} 17. h4 {[%emt 0:07:12]} h5 {[%emt 0:01:37]} 18. Re2 {[%emt 0:07:50]} Nh7 {[%emt 0:08:29]} 19. Rae1 {[%emt 0:01:05][%cal Ob3d5,Ba1e1,Be1e8,Be8c8,Bc8c6][%mdl 32] Bxd5! would now be deadly.} Rf8 {[%emt 0:02:33]} 20. Bd6 {[%emt 0:11:21]} Rfd8 {[%emt 0:00:22] [#]} 21. Rxe6 {[%emt 0:04:32][%cal Ob3d5] And now Bxd5! would win.} Nxd4 $1 {[%emt 0:02:35]} (21... fxe6 $2 22. Rxe6 Rxd6 23. Rxd6 $18) 22. cxd4 {[%emt 0:00:48]} Rxd6 {[%emt 0:03:58]} 23. Re8+ $16 {[%emt 0:09:20]} ({Inferior is} 23. Rxd6 Qxe1+ 24. Kh2 Qe7 25. Rxd5 Nf6 $17 (25... Qxh4+ 26. Kg1 $11)) 23... Rxe8 {[%emt 0:00:10]} 24. Rxe8+ {[%emt 0:00:46]} Bf8 {[%emt 0:05:53] [#]} 25. Qc3 {[%emt 0:11:43] White has more active pieces.} (25. Nxh5 $1 $16 {Hoping for Nf4.} Qd2 (25... gxh5 $2 {perishes.} 26. Bc2 $18) 26. Qf4) 25... Qb5 $11 {[%emt 0:08:53]} 26. Rc8 {[%emt 0:07:05][%cal Og3h5]} Rc6 {[%emt 0:04:25]} 27. Rxc6 {[%emt 0:00:10] Weighted Error Value: White=0.16 (very precise) /Black=0.10 (very precise) .  Mistake:       	White=1     	Black=1      Inaccurate:     	White=3     	Black=3      OK:         	White=5     	Black=10     Best:        	White=2     	Black=1      Strong:       	---       	Black=1      Brilliant:      	White=1     	---} 1/2-1/2

[Event "SixDays Budapest GM-A January 2024"]
[Site "Budapest"]
[Date "2024.01.28"]
[Round "2.4"]
[White "Pham Tran Gia Phuc"]
[Black "Berczes, David"]
[Result "1-0"]
[ECO "E20"]
[WhiteElo "2416"]
[BlackElo "2439"]
[Annotator "TA"]
[PlyCount "95"]
[EventDate "2024.01.26"]
[EventType "tourn"]
[EventCountry "HUN"]
[SourceTitle "playchess.com"]
[Source "ChessBase"]
[SourceQuality "1"]
[TimeControl "5400+30"]

{[%evp 33,95,67,146,138,150,169,137,-86,0,0,0,-179,-200,-248,12,19,62,67,244,246,242,240,227,220,429,418,408,410,749,747,1463,640,633,630,643,641,637,610,1022,803,799,805,763,739,733,630,615,321,1089,581,681,627,699,618,635,497,485,8,1103,1039,1099,1083,1084,1039]} 1. d4 {[%emt 0:00:12]} Nf6 {[%emt 0:15:33]} 2. c4 {[%emt 0:00:25]} e6 {[%emt 0:00:39]} 3. Nc3 {[%emt 0:00:17]} Bb4 {[%emt 0:00:34]} 4. f3 {[%emt 0:00:20]} d5 {[%emt 0:09:09]} 5. a3 {[%emt 0:00:08]} Bxc3+ {[%emt 0:01:48]} 6. bxc3 {[%emt 0:00:08]} c6 {[%emt 0:00:49]} 7. e4 $1 {[%emt 0:00:17][%mdl 4] is now more promising than 7.e3. E20: Nimzo-Indian: 4 g3 and 4 f3.} dxe4 {[%emt 0:00:55]} 8. fxe4 {[%emt 0:00:08]} Nxe4 {[%emt 0:04:59]} 9. Qg4 {[%emt 0:00:39]} Nf6 {[%emt 0:00:10]} 10. Qxg7 {[%emt 0:00:06]} Rg8 {[%emt 0:00:05]} 11. Qh6 {[%emt 0:00:07]} Rg6 {[%emt 0:03:01]} 12. Qe3 {[%emt 0:11:35]} c5 $146 {[%emt 0:02:54]} ({Predecessor:} 12... Ng4 13. Qe2 c5 14. Nf3 cxd4 15. cxd4 Nc6 16. Bb2 Qa5+ 17. Nd2 Bd7 18. h3 Nh6 {1-0 Assaubayeva,B (2389)-Koneru,H (2586) Speed Chess (Women) Main blitz 2021 (1.14)}) 13. Nf3 {[%emt 0:04:07]} Nbd7 {[%emt 0:02:21]} 14. g3 {[%emt 0:06:16]} cxd4 {[%emt 0:37:12]} 15. cxd4 {[%emt 0:01:58]} b5 {[%emt 0:00:18]} 16. Bg2 {[%emt 0:09:19]} Bb7 {[%emt 0:02:30]} 17. Rb1 {[%emt 0:10:08]} (17. cxb5 Qa5+ 18. Bd2 Qxb5 $14) (17. c5 $1 $18) 17... Rc8 {[%emt 0:12:52]} (17... Nb6 $1 $14) 18. c5 $1 $16 {[%emt 0:03:58]} (18. Rxb5 $6 Ba6 19. O-O Bxb5 20. cxb5 Nd5 $15) (18. cxb5 Be4 19. Ra1 Qa5+ 20. Bd2 Qxb5 $11) 18... Ng4 {[%emt 0:02:08]} 19. Qe2 {[%emt 0:02:39]} Ndf6 {[%emt 0:01:14]} 20. Bb2 $2 {[%emt 0:05:03]} (20. Qxb5+ $16 {stays on course.} Bc6 21. Qa6) 20... Nd5 {[%emt 0:00:27]} (20... Qa5+ $17 21. Kf1 Ne4) 21. O-O $11 {[%emt 0:05:10]} Nde3 {[%emt 0:00:50]} 22. Ne5 $2 {[%emt 0:00:06]} (22. Nh4 $11 Nxg2 (22... Bxg2 23. Nxg2 Nxf1 24. Rxf1 $11) 23. Nxg6 (23. Nxg2 Qd5 $17) 23... hxg6 24. Qxg4) 22... Bxg2 $19 {[%emt 0:00:29]} 23. Qxb5+ {[%emt 0:00:28] [#]} Bc6 $2 {[%emt 0:00:31]} (23... Kf8 $1 $19 {[%mdl 512]} 24. Rxf7+ Kg8 25. Nxg6 Kxf7) 24. Nxc6 $11 {[%emt 0:00:07]} Qd7 {[%emt 0:00:24]} 25. Nxa7 {[%emt 0:01:58]} Nxf1 $2 {[%emt 0:00:36]} ({Black should play} 25... Qxb5 $14 26. Nxb5 Nxf1 27. Rxf1 (27. Nd6+ Kd8 $18) 27... e5) 26. Nxc8 $18 {[%emt 0:02:12]} (26. Rxf1 $6 Qxb5 27. Nxb5 Rb8 $16) 26... Qxb5 {[%emt 0:00:16]} 27. Nd6+ {[%emt 0:00:07]} Kd7 {[%emt 0:00:45]} 28. Nxb5 {[%emt 0:00:06]} Nd2 $2 {[%emt 0:00:29]} (28... Ngxh2 29. Na7 (29. Rxf1 Nxf1 30. Kxf1 Rxg3 $16) 29... Nd2) 29. Rc1 $18 {[%emt 0:00:43]} Kc6 {[%emt 0:00:29]} 30. Na7+ {[%emt 0:00:51]} Kd5 {[%emt 0:00:14]} (30... Kc7 $142 31. c6 Nf3+ 32. Kg2 Nd2 33. Nb5+ Kc8) 31. c6 $18 {[%emt 0:03:24]} Rh6 {[%emt 0:00:47]} 32. Bc3 {[%emt 0:01:46]} (32. c7 $142 Nf3+ 33. Kg2 Rxh2+ 34. Kxf3) 32... Nf3+ $18 {[%emt 0:00:09]} 33. Kg2 {[%emt 0:00:48]} Ke4 {[%emt 0:00:42]} 34. h4 {[%emt 0:00:09]} Ne3+ {[%emt 0:00:35]} 35. Kf2 {[%emt 0:00:38]} Kd3 {[%emt 0:00:35]} 36. Bb2 {[%emt 0:01:58]} (36. Kxf3 $2 Rf6#) 36... Rf6 {[%emt 0:00:29]} 37. Rc3+ $1 {[%emt 0:03:11]} Kd2 {[%emt 0:00:01]} 38. Rxe3 {[%emt 0:00:11]} (38. c7 Nxd4+ (38... Nxh4+ 39. Kg1 Rf1+ 40. Kh2 Nf3+ 41. Kh3 Rh1#) 39. Kg1 Rf1+ 40. Kh2 Nf3+ 41. Kh3 Rh1#) 38... Ne1+ {[%emt 0:00:58]} 39. Kg1 {[%emt 0:00:26]} Kxe3 {[%emt 0:00:01]} 40. d5 {[%emt 0:00:34]} (40. c7 Rf2 41. Kh1 Nf3 (41... Rxb2 $2 42. c8=Q $18) 42. Bc1+ Ke4 43. c8=Q Rh2#) 40... e5 $2 {[%emt 0:00:26]} (40... Nf3+ 41. Kg2 Ne1+ 42. Kh3 Rf1) 41. Bxe5 {[%emt 0:01:08]} (41. c7 Rf2 42. Kh1 Nf3 43. Bc1+ Ke2 44. c8=Q Rh2#) 41... Nf3+ {[%emt 0:00:36]} 42. Kg2 {[%emt 0:00:06]} Nxe5 {[%emt 0:00:52]} 43. c7 {[%emt 0:00:06]} Rf2+ {[%emt 0:00:37]} 44. Kh3 {[%emt 0:00:05]} Rc2 {[%emt 0:00:30] [#]} 45. Nc6 $2 {[%emt 0:01:44]} (45. c8=R Rd2 $16) ({Better is} 45. c8=Q $1 $18 {[%mdl 512]} Rxc8 46. Nxc8) 45... Nd3 $2 {[%emt 0:00:29][%mdl 8192] [#]} (45... Kf2 $11) 46. Kg4 $1 $18 {[%emt 0:00:10]} (46. c8=B $2 {loses.} h5 47. Ba6 Nf2+ 48. Kg2 Rd2 $19) ({Worse is} 46. c8=Q Nf2+ 47. Kh2 Ng4+ 48. Kh3 Nf2+ 49. Kg2 Ng4+ 50. Kh1 Rc1+ 51. Kg2 Rc2+ 52. Kh3 Nf2+ $11) 46... Ne5+ {[%emt 0:00:30]} 47. Kh5 {[%emt 0:01:05]} Nxc6 {[%emt 0:00:30]} 48. c8=Q {[%emt 0:00:07]} (48. c8=B $2 {perishes.} Nd4 49. Ba6 Nf5 $19) 1-0

[Event "SixDays Budapest GM-A January 2024"]
[Site "Budapest"]
[Date "2024.01.28"]
[Round "2.5"]
[White "Durak, Can"]
[Black "Barrish, Daniel"]
[Result "1-0"]
[ECO "A06"]
[WhiteElo "2349"]
[BlackElo "2347"]
[Annotator "TA"]
[PlyCount "69"]
[EventDate "2024.01.26"]
[EventType "tourn"]
[EventCountry "HUN"]
[SourceTitle "playchess.com"]
[Source "ChessBase"]
[SourceQuality "1"]
[TimeControl "5400+30"]

{[%evp 16,69,12,18,37,16,24,0,0,0,4,0,18,12,14,4,44,37,42,39,60,38,55,33,87,93,81,94,112,72,66,79,58,85,78,80,66,66,75,54,102,93,163,155,151,151,187,193,306,295,301,277,432,418,515,506]} 1. Nf3 {[%emt 0:09:03]} d5 {[%emt 0:08:49]} 2. e3 {[%emt 0:00:20]} c5 {[%emt 0:00:20]} 3. b3 {[%emt 0:00:50]} Nf6 {[%emt 0:00:32]} 4. Bb2 {[%emt 0:01:00]} g6 {[%emt 0:01:02]} 5. c4 {[%emt 0:04:13]} dxc4 {[%emt 0:01:37]} 6. Bxc4 {[%emt 0:00:43]} Bg7 {[%emt 0:00:46]} 7. O-O {[%emt 0:00:38]} O-O {[%emt 0:00:20]} 8. d4 {[%emt 0:00:11]} cxd4 {[%emt 0:01:33]} 9. Nxd4 {[%emt 0:00:32]} Bd7 {[%emt 0:06:08]} 10. Be2 {[%emt 0:08:50]} Nc6 {[%emt 0:01:05]} 11. Bf3 {[%emt 0:00:52]} Qb6 {[%emt 0:10:15] The position is equal.} 12. Nd2 {[%emt 0:00:54]} Ne5 {[%emt 0:16:09]} 13. Be2 {[%emt 0:00:08]} Rfd8 {[%emt 0:01:25]} 14. Rc1 {[%emt 0:02:11]} Nd5 {[%emt 0:05:43]} 15. a3 {[%emt 0:02:45]} Be8 {[%emt 0:04:12]} 16. Qc2 {[%emt 0:01:51]} a6 {[%emt 0:04:21]} 17. Rfd1 {[%emt 0:03:39]} Nc6 {[%emt 0:02:03]} 18. Nxc6 {[%emt 0:06:35]} (18. N4f3 {simplifies} Rac8 19. Bxg7 Kxg7 20. Qb2+) 18... Bxc6 {[%emt 0:00:40]} 19. Bxg7 {[%emt 0:00:54]} Nxe3 {[%emt 0:09:28]} (19... Kxg7 $14 20. Nc4 Qc7) 20. Qb2 $16 {[%emt 0:03:10]} (20. fxe3 Qxe3+ 21. Kf1 Bxg2+ 22. Kxg2 Qxe2+ 23. Kh1 Kxg7 $15) 20... Nxd1 {[%emt 0:09:26]} 21. Rxd1 {[%emt 0:00:13]} Bb5 {[%emt 0:01:08] [#]} 22. Bh6 $1 {[%emt 0:04:54] Dancing on a razor blade. This pair of bishops is nice.} Qd4 {[%emt 0:03:55]} 23. Qxd4 $40 {[%emt 0:00:24][%mdl 128] White attacks with force.} Rxd4 {[%emt 0:00:01]} 24. Bf3 {[%emt 0:00:47]} Rad8 {[%emt 0:01:26]} 25. a4 {[%emt 0:01:31]} ({Don't play} 25. Bxb7 Be2 26. Rc1 R4d7 $11 (26... Rxd2 27. Bxd2 Rxd2 28. h3 $11)) 25... Bc6 {[%emt 0:00:24]} 26. Bxc6 {[%emt 0:00:39]} bxc6 {[%emt 0:00:05] [#]} 27. Kf1 $1 {[%emt 0:01:27]} f5 {[%emt 0:05:24]} (27... Rh4 $14 {might be stronger.} 28. Bg5 Rxh2) 28. Be3 {[%emt 0:01:16]} R4d5 {[%emt 0:03:03]} (28... Rd3 $16) 29. Ke2 $18 {[%emt 0:00:22]} e5 {[%emt 0:00:09]} 30. g3 {[%emt 0:00:16]} Rf8 {[%emt 0:02:45]} 31. Rc1 {[%emt 0:00:33]} f4 {[%emt 0:00:06]} (31... Rc8 $142 32. Nc4 Re8) 32. Bb6 {[%emt 0:00:40]} Rc8 {[%emt 0:00:53]} 33. Ne4 {[%emt 0:00:28]} Kg7 {[%emt 0:00:34] Against Nf6} (33... Kf7 $142 34. Rc4 Ke7) 34. Nc5 {[%emt 0:00:43]} Ra8 {[%emt 0:00:37]} 35. Ne6+ {[%emt 0:00:16] Weighted Error Value: White=0.04 (flawless) /Black=0.32.  Mistake:       	---       	Black=5      Inaccurate:     	White=1     	Black=1      OK:         	White=17    	Black=5      Best:        	White=1     	Black=1      Strong:       	White=1     	---} 1-0

[Event "SixDays Budapest GM-A January 2024"]
[Site "Budapest"]
[Date "2024.01.28"]
[Round "3.1"]
[White "Barrish, Daniel"]
[Black "Can, Isik"]
[Result "1/2-1/2"]
[ECO "B12"]
[WhiteElo "2347"]
[BlackElo "2500"]
[Annotator "TA"]
[PlyCount "24"]
[EventDate "2024.01.26"]
[EventType "tourn"]
[EventCountry "HUN"]
[SourceTitle "playchess.com"]
[Source "ChessBase"]
[SourceQuality "1"]
[TimeControl "5400+30"]

{[%evp 11,24,0,8,0,2,-5,-7,-10,-12,-17,-11,-20,0,-8,0]} 1. e4 {[%emt 0:02:02]} c6 {[%emt 0:05:00]} 2. d4 {[%emt 0:00:13]} d5 {[%emt 0:00:04]} 3. e5 {[%emt 0:00:05]} Bf5 {[%emt 0:00:05]} 4. h4 {[%emt 0:00:10]} h5 {[%emt 0:00:04]} 5. Bd3 {[%emt 0:00:16]} Bxd3 {[%emt 0:00:06]} 6. Qxd3 {[%emt 0:00:05]} e6 {[%emt 0:00:03] Die Stellung ist ausgeglichen.} 7. Bg5 {[%emt 0:00:43]} Qb6 {[%emt 0:00:08]} 8. Nd2 {[%emt 0:01:19] Aktives Gegenspiel!} c5 {[%emt 0:00:11]} 9. c4 {[%emt 0:00:54]} Qxb2 {[%emt 0:00:10]} 10. Rd1 {[%emt 0:00:29]} Nc6 {[%emt 0:01:39]} ({Bitte nicht} 10... Qxa2 11. Ne2 $16) 11. Ngf3 {[%emt 0:06:59]} Nb4 {[%emt 0:09:57]} ({Viel schlechter ist} 11... Qxa2 $6 12. dxc5 Nb4 (12... Bxc5 13. O-O $14) 13. Qe2 $14) 12. Qe2 {[%emt 0:04:24] [#] Und cxd5 würde nun gewinnen.} cxd4 {[%emt 0:13:33] Hier war wenig los.   Gewichteter Fehlerwert: Weiß=0.04 (makellos) /Schwarz=0.00 (makellos) .  OK:         	Weiß=2     	Schwarz=6} 1/2-1/2

[Event "SixDays Budapest GM-A January 2024"]
[Site "Budapest"]
[Date "2024.01.28"]
[Round "3.2"]
[White "Berczes, David"]
[Black "Durak, Can"]
[Result "1/2-1/2"]
[ECO "A06"]
[WhiteElo "2439"]
[BlackElo "2349"]
[Annotator "TA"]
[PlyCount "34"]
[EventDate "2024.01.26"]
[EventType "tourn"]
[EventCountry "HUN"]
[SourceTitle "playchess.com"]
[Source "ChessBase"]
[SourceQuality "1"]
[TimeControl "5400+30"]

{[%evp 9,34,8,13,8,-4,0,-6,0,0,0,0,0,0,0,0,-15,-24,-35,-7,-8,-2,-20,-20,-13,-17,-6,-4]} 1. Nf3 {[%emt 0:21:21]} d5 {[%emt 0:00:25]} 2. g3 {[%emt 0:00:30]} Nf6 {[%emt 0:00:50]} 3. Bg2 {[%emt 0:00:07]} c5 {[%emt 0:01:22]} 4. O-O {[%emt 0:00:25]} e6 {[%emt 0:00:24]} 5. c4 {[%emt 0:06:49]} d4 {[%emt 0:00:11]} 6. b4 {[%emt 0:00:07]} cxb4 {[%emt 0:00:59]} 7. a3 {[%emt 0:00:07]} Nc6 {[%emt 0:00:22]} 8. Bb2 {[%emt 0:01:46]} bxa3 {[%emt 0:00:31]} 9. Nxa3 {[%emt 0:00:04]} Bc5 {[%emt 0:00:20]} 10. e3 {[%emt 0:01:20]} O-O {[%emt 0:00:50]} 11. exd4 {[%emt 0:00:58]} Nxd4 {[%emt 0:00:19]} 12. Nc2 {[%emt 0:12:57][%cal Rc2d4]} Nxf3+ {[%emt 0:01:16]} 13. Bxf3 {[%emt 0:04:43]} Be7 {[%emt 0:03:03]} 14. Qe2 {[%emt 0:07:41] The position is equal.} Bd7 {[%emt 0:05:47]} 15. Bd4 {[%emt 0:05:27]} ({Don't play} 15. Bxb7 Rb8 16. Bxf6 (16. Rxa7 Bc5 $17) 16... Bxf6 $15 (16... Rxb7 17. Qe4 $11)) 15... Bc6 {[%emt 0:03:07]} 16. Bxc6 {[%emt 0:11:58]} bxc6 {[%emt 0:00:45]} 17. Bxa7 {[%emt 0:05:44]} c5 {[%emt 0:01:45] Not much happened in this game.   Weighted Error Value: White=0.04 (flawless) /Black=0.03 (flawless) .  Inaccurate:     	---       	Black=1      OK:         	White=4     	Black=7      Best:        	White=1     	Black=1} 1/2-1/2

[Event "SixDays Budapest GM-A January 2024"]
[Site "Budapest"]
[Date "2024.01.28"]
[Round "3.3"]
[White "Karamsetty, Jeevan"]
[Black "Pham Tran Gia Phuc"]
[Result "0-1"]
[ECO "B24"]
[WhiteElo "2211"]
[BlackElo "2416"]
[Annotator "TA"]
[PlyCount "52"]
[EventDate "2024.01.26"]
[EventType "tourn"]
[EventCountry "HUN"]
[SourceTitle "playchess.com"]
[Source "ChessBase"]
[SourceQuality "1"]
[TimeControl "5400+30"]

{[%evp 9,52,0,0,0,0,0,0,0,0,0,23,24,64,50,81,79,63,60,62,0,0,0,83,-241,-252,-427,-441,-647,-654,-660,-658,-629,-663,-663,-669,-645,-668,-636,-610,-641,-608,-579,-570,-547,-544]} 1. e4 {[%emt 0:02:31]} c5 {[%emt 0:00:06]} 2. Nc3 {[%emt 0:00:13]} Nc6 {[%emt 0:00:06]} 3. Bb5 {[%emt 0:00:21]} Nd4 {[%emt 0:00:07]} 4. Bc4 {[%emt 0:00:05]} e6 {[%emt 0:00:07]} 5. Nge2 {[%emt 0:00:06]} Nf6 {[%emt 0:00:13]} 6. O-O {[%emt 0:00:08]} a6 {[%emt 0:01:14]} 7. a4 {[%emt 0:00:08]} d5 {[%emt 0:00:41]} 8. exd5 {[%emt 0:00:07] The position is equal.} exd5 {[%emt 0:00:06]} 9. Ba2 {[%emt 0:00:04]} Bg4 {[%emt 0:00:33]} 10. h3 {[%emt 0:00:33]} Bh5 {[%emt 0:03:09]} 11. f3 {[%emt 0:02:45]} Bg6 {[%emt 0:17:28]} 12. d3 $1 {[%emt 0:03:40]} Be7 {[%emt 0:06:26]} 13. Nf4 {[%emt 0:09:53]} c4 {[%emt 0:02:27]} 14. Nxg6 {[%emt 0:02:11]} (14. dxc4 $14 dxc4 15. Nxg6 (15. Bxc4 Bxc2 16. Qd2 Rc8 $17) 15... hxg6 16. Be3 (16. Bxc4 $2 Qc7 $19)) 14... hxg6 $11 {[%emt 0:00:06]} 15. dxc4 {[%emt 0:07:45]} dxc4 {[%emt 0:01:37]} (15... Qc7 $1 $11 {keeps the balance.}) 16. Bxc4 $2 {[%emt 0:11:26][%mdl 8192] [#] White does not recover from this.} (16. Be3 $1 $16 {stays on course.} Bc5 17. Ne4 (17. Bxc4 Qc7 $16) 17... Nxe4 18. fxe4) 16... Qc7 $1 $19 {[%emt 0:00:10]} 17. Ne2 $2 {[%emt 0:18:11] [#]} (17. Qxd4 $2 Bc5 18. Rd1 (18. Re1+ $2 Kf8 $19) (18. Bb5+ $2 axb5 19. Re1+ Kf8 $19) 18... Rd8 (18... Bxd4+ $2 19. Rxd4 Qe5 20. Ne2 $19) 19. Bb5+ (19. Re1+ $2 Kf8 $19) 19... axb5 (19... Kf8 $2 20. Be3 $19) 20. Re1+ Kf8 $19) (17. Be3 Nf5 18. Bb5+ axb5 19. Nxb5) 17... O-O-O $1 {[%emt 0:02:57] ...Nxf3+ is the strong threat. Black is clearly winning.} (17... Qxc4 18. Nxd4 O-O 19. Be3 $11) 18. Bd3 {[%emt 0:01:44]} (18. Nxd4 $142 Rxd4 (18... Qxc4 19. c3 $14) 19. Be6+ (19. Qxd4 $2 {loses.} Bc5 $19) 19... fxe6 20. Qe1 (20. Qxd4 $2 Bc5 $19)) 18... Bc5 {[%emt 0:00:10]} 19. Be3 {[%emt 0:21:13]} Nxe2+ {[%emt 0:02:51]} 20. Qxe2 {[%emt 0:00:07] White is weak on the dark squares} Rhe8 {[%emt 0:00:09]} 21. Be4 {[%emt 0:02:04]} Nxe4 {[%emt 0:00:08]} 22. fxe4 {[%emt 0:00:41]} Rxe4 {[%emt 0:00:06]} 23. Rf3 {[%emt 0:00:58]} Rde8 {[%emt 0:00:07]} 24. Ra3 {[%emt 0:01:13]} Rxe3 {[%emt 0:00:11]} 25. Rfxe3 {[%emt 0:03:04]} Rxe3 {[%emt 0:00:09]} 26. Rxe3 {[%emt 0:02:24][%cal Ob2b4]} Qf4 {[%emt 0:00:06] Weighted Error Value: White=0.64/Black=0.09 (flawless) .  Loses game:     	White=1     	---        Mistake:       	White=3     	Black=1      Inaccurate:     	---       	Black=2      OK:         	White=5     	Black=4      Strong:       	White=1     	Black=2} (26... Bxe3+ 27. Qxe3 Kb8 28. b4 $11) 0-1

[Event "SixDays Budapest GM-A January 2024"]
[Site "Budapest"]
[Date "2024.01.28"]
[Round "3.4"]
[White "Castellanos Rodriguez, Renier"]
[Black "Sedlak, Nikola"]
[Result "1/2-1/2"]
[ECO "C10"]
[WhiteElo "2468"]
[BlackElo "2463"]
[Annotator "TA"]
[PlyCount "96"]
[EventDate "2024.01.26"]
[EventType "tourn"]
[EventCountry "HUN"]
[SourceTitle "playchess.com"]
[Source "ChessBase"]
[SourceQuality "1"]
[TimeControl "5400+30"]

{[%evp 24,96,18,14,23,16,23,16,15,25,29,23,38,43,106,112,114,114,114,120,114,119,115,115,168,144,172,151,152,165,160,0,0,0,0,0,0,0,0,0,7,6,7,0,0,0,0,-6,-6,-6,-6,-6,-6,-7,0,-80,-71,-88,-80,-89,-40,-51,-8,-8,-8,-8,-8,-8,0,-41,-41,-41,0,0,0]} 1. e4 {[%emt 0:00:03]} e6 {[%emt 0:00:09]} 2. d4 {[%emt 0:00:15]} d5 {[%emt 0:00:08]} 3. Nc3 {[%emt 0:00:15]} dxe4 {[%emt 0:00:27]} 4. Nxe4 {[%emt 0:00:07]} Be7 {[%emt 0:00:31]} 5. Nf3 {[%emt 0:01:28]} Nf6 {[%emt 0:00:07]} 6. Bd3 {[%emt 0:03:59]} Bd7 {[%emt 0:01:14]} 7. O-O {[%emt 0:07:37]} Nxe4 {[%emt 0:00:49]} 8. Bxe4 {[%emt 0:00:05]} Bc6 {[%emt 0:00:06]} 9. Qe2 {[%emt 0:01:02]} O-O {[%emt 0:02:11]} 10. c4 {[%emt 0:01:42]} Bxe4 {[%emt 0:00:13]} 11. Qxe4 {[%emt 0:00:04]} c6 {[%emt 0:00:05]} 12. Bf4 {[%emt 0:01:47]} Nd7 {[%emt 0:00:11][%cal Bb8d7,Bd7f6,Bf6d5][%mdl 32]} 13. Rfd1 {[%emt 0:00:38]} Re8 {[%emt 0:01:22]} 14. Rd3 {[%emt 0:01:09]} Nf6 {[%emt 0:05:48]} 15. Qe2 {[%emt 0:01:09]} b5 {[%emt 0:05:39]} 16. c5 {[%emt 0:08:25]} Nd5 {[%emt 0:00:12]} 17. Bg3 {[%emt 0:01:08]} a5 {[%emt 0:04:39]} 18. a4 {[%emt 0:02:04]} Qc8 {[%emt 0:08:00]} ({Black should try} 18... Qd7 $14) 19. axb5 $16 {[%emt 0:02:02]} cxb5 {[%emt 0:00:30]} 20. Rda3 $1 {[%emt 0:00:25][%csl LRa5,LRb5]} Qa6 {[%emt 0:04:10]} 21. Rxa5 {[%emt 0:02:49]} Qxa5 {[%emt 0:00:06]} 22. Rxa5 {[%emt 0:00:05]} Rxa5 {[%emt 0:00:04]} 23. h3 {[%emt 0:01:02]} Rea8 {[%emt 0:03:22]} (23... Bf6 $16 24. Ne5 Rc8) 24. Kh2 $18 {[%emt 0:04:05]} h5 {[%emt 0:02:17]} 25. Bh4 {[%emt 0:02:57]} Bxh4 {[%emt 0:01:00]} 26. Nxh4 {[%emt 0:00:23]} Ra4 {[%emt 0:04:08]} 27. Qxb5 $2 {[%emt 0:06:53]} (27. Nf3 $16) 27... Rxd4 $11 {[%emt 0:00:34]} 28. Qb7 {[%emt 0:03:51]} Rf8 {[%emt 0:00:34]} 29. Nf3 {[%emt 0:01:21]} Rb4 {[%emt 0:00:07]} 30. Qa7 {[%emt 0:00:41]} Rxb2 {[%emt 0:00:40]} 31. c6 {[%emt 0:00:13]} Rbb8 {[%emt 0:03:17]} 32. Nd4 {[%emt 0:07:17]} Rfc8 {[%emt 0:04:34]} 33. Qd7 {[%emt 0:03:18]} Rc7 {[%emt 0:01:32]} 34. Qd6 {[%emt 0:00:07][%cal Od4e6]} Rbc8 {[%emt 0:00:11]} 35. f4 {[%emt 0:02:50]} Ne7 {[%emt 0:01:15][%cal Re7c6]} 36. Qc5 {[%emt 0:05:17][%cal Od4b5] [#] Hoping for Nb5!} Nxc6 {[%emt 0:00:38]} 37. Nb5 {[%emt 0:00:21]} Rd7 {[%emt 0:00:22] Strongly threatening ...Ne7.} 38. Nd6 $1 {[%emt 0:00:48]} Rcc7 {[%emt 0:02:11]} 39. Nb5 {[%emt 0:01:08]} (39. Ne8 $1 $11 Rc8 40. Nd6) 39... Rd5 $17 {[%emt 0:02:27]} 40. Qxd5 {[%emt 0:00:53]} exd5 {[%emt 0:00:13]} 41. Nxc7 {[%emt 0:00:03][%mdl 4096] Endgame. [#] KN-KN} d4 {[%emt 0:00:37]} ({Black should play} 41... Nb4 $1 $17 42. Kg3 d4) 42. Kg3 $15 {[%emt 0:00:27]} f5 {[%emt 0:05:09] ...Kf7 would now be deadly.} 43. Kf3 {[%emt 0:00:54]} Kf7 {[%emt 0:01:07] And now ...h4 would win.} 44. Ke2 {[%emt 0:00:39]} Nb4 {[%emt 0:00:42]} 45. g3 {[%emt 0:01:33]} g6 {[%emt 0:00:55]} 46. Nb5 {[%emt 0:00:54]} d3+ {[%emt 0:00:17]} 47. Kd2 {[%emt 0:00:48]} Ke6 {[%emt 0:01:35]} (47... h4 $5 48. gxh4 Nd5 $11) 48. Nd4+ {[%emt 0:00:35]} Kf6 {[%emt 0:01:03] Weighted Error Value: White=0.11 (very precise) /Black=0.10 (very precise) .  Mistake:       	White=2     	Black=3      Inaccurate:     	White=1     	Black=2      OK:         	White=17    	Black=13     Best:        	White=5     	Black=3      Strong:       	White=1     	---} (48... Kd5 $5 49. Nf3 $8 Ke4 50. Ng5+ Kd4 $11) 1/2-1/2